Cogmind - Beta 15 @@@ ROGUE MODE // 2025.08.10 @ 18:44:45 Player: Tuja Result: Destroyed by G-47 Trooper with Particle Gun Performance ------------- Evolutions (0) 0 Regions Visited (2) 400 Robots Destroyed (16) 80 Value Destroyed (378) 378 Prototype IDs (0) 0 Alien Tech Used (0) 0 Bonus (0) 0 TOTAL SCORE: 858 Bonus ------- None Cogmind --------- Core Integrity 0/250 Matter 276/300 Energy 241/250 System Corruption 0% Temperature Cool (89) Movement Core (150) Ox2 Location -10/Mines Parts ------- > --- POWER (1) -------- Ion Engine > --- PROPULSION (2) --- (None) > --- UTILITY (2) ------ Signal Interpreter Core Shielding > --- WEAPON (2) ------- Small Laser Light Assault Rifle > --- INVENTORY (5) ---- Light Nuclear Core Aluminum Leg Aluminum Leg Small Storage Unit Medium Battery (150) Peak State ------------ > --- POWER ------------ Ion Engine > --- PROPULSION ------- Hover Unit Hover Unit > --- UTILITY ---------- Small Storage Unit Signal Interpreter > --- WEAPON ----------- Assault Rifle Light Assault Rifle > --- INVENTORY -------- Ion Engine Light Ion Engine Light Nuclear Core Hover Unit Hover Unit Medium Battery Small Laser Light Assault Rifle [Rating: 8] Favorites ----------- Power Ion Engine Engine Ion Engine Propulsion Hover Unit Leg Aluminum Leg Hover Unit Hover Unit Utility Small Storage Unit Storage Small Storage Unit Processor Signal Interpreter Protection Core Shielding Weapon Light Assault Rifle Energy Gun Small Laser Ballistic Gun Light Assault Rifle Build | -11 -10 -10 ------- Run | Yrd Mat Min Slots Evolved . | . . . Power . | . . . Propulsion . | . . . Utility . | . . . Weapon . | . . . Parts Attached 16 | 4 8 4 Power 2 | 1 . 1 Engine 2 | 1 . 1 Core . | . . . Reactor . | . . . Propulsion 7 | 2 5 . Treads . | . . . Leg 2 | 2 . . Wheel . | . . . Hover 5 | . 5 . Flight . | . . . Utility 3 | 1 1 1 Device . | . . . Storage 1 | 1 . . Processor 1 | . 1 . Hackware . | . . . Protection 1 | . . 1 Artifact . | . . . Weapon 4 | . 2 2 Energy Gun 1 | . . 1 Energy Cannon . | . . . Ballistic Gun 3 | . 2 1 Ballistic Cannon . | . . . Launcher . | . . . Special Weapon . | . . . Impact Weapon . | . . . Slashing Weapon . | . . . Piercing Weapon . | . . . Special Melee Weapon . | . . . Unidentified Prototypes . | . . . Parts Lost 8 | . 3 5 Power 1 | . . 1 Propulsion 5 | . 3 2 Utility . | . . . Weapon 2 | . . 2 Highest Loss Streak 3 | . 1 3 To Critical Strikes . | . . . Average Backups 6 | 2 6 7 Power 2 | . 2 1 Propulsion 1 | . 1 2 Utility . | . . 1 Weapon 2 | 1 1 2 Tool/Special . | . . . Unused Backups 5 | . 1 4 Power 2 | . 1 1 Propulsion 2 | . . 2 Utility 1 | . . 1 Weapon . | . . . Tool/Special . | . . . Average Slot Usage (%) 96 | . 96 97 Engine 13 | . 14 13 Leg 4 | . 6 . Hover 22 | . 21 26 Storage 13 | . 14 13 Processor 12 | . 11 14 Ballistic Gun 27 | . 27 27 Peak Build Rating 8 | 4 8 8 Average Rating 6 | 2 7 7 On Entrance 4 | . 4 8 Naked Turns . | . . . Heaviest Build 13 | 10 13 13 Greatest Support 20 | 20 20 12 Greatest Overweight (x) 2 | . 2 2 Average Overweight (x) . | . . . Largest Inventory Capacity 8 | 8 8 8 Average Capacity 7 | 7 8 7 Most Carried 8 | 5 8 8 Average Carried 6 | 3 6 7 Final Capacity 8 | 8 8 5 Final Carried 8 | 4 8 5 Class Distribution -------------------- 100% | Mutant Dominant Class ---------------- Mutant | -10/Materials Mutant | -10/Mines Resources | -11 -10 -10 ----------- Run | Yrd Mat Min Matter Collected 552 | 209 259 84 Remotely . | . . . Salvage Created 451 | . 349 102 Parts 34 | . 22 12 Haulers Intercepted . | . . . Recyclers Shooed 1 | . . 1 Parts Field Recycled . | . . . Retrieved Matter . | . . . Parts Self-Destructed . | . . . Prevented . | . . . Kills | -11 -10 -10 ------- Run | Yrd Mat Min Combat Hostiles Destroyed 16 | . 10 6 Guns 16 | . 10 6 Classes Destroyed 2 | . 2 . Swarmer 8 | . 3 5 Grunt 8 | . 7 1 Best Kill Streak 3 | . 3 3 Combat Bots Only 3 | . 3 3 Max Kills in Single Turn 1 | . 1 1 Gunslinging . | . . . Exploded . | . . . Melee . | . . . Uniques/NPCs Destroyed . | . . . Combat | -11 -10 -10 -------- Run | Yrd Mat Min Hostile Shots Fired 134 | . 56 78 Missed 47 | . 20 27 Hits 87 | . 36 51 Projectile 87 | . 36 51 Damage Taken 930 | . 389 541 Core 256 | . 116 140 Absorbed by Shields . | . . . Redirected to Shielding 10 | . . 10 Core Remaining (%) 100 | 100 . . Volleys Fired 59 | . 35 24 Largest 2 | . 2 2 Hottest 60 | . 40 60 Shots Fired 117 | . 70 47 Gun 117 | . 70 47 Cannon . | . . . Launcher . | . . . Special . | . . . Kinetic 111 | . 70 41 Thermal 6 | . . 6 Explosive . | . . . Electromagnetic . | . . . Robot Hit Streak 9 | . 9 7 Robot Miss Streak 7 | . 7 3 Penetration Max . | . . . Secondary Targets 3 | . 1 2 Max Gunslinging Chain 1 | . 1 1 Shots Hit Robots 72 | . 41 31 Core Hits 30 | . 18 12 Critical Kills . | . . . Critical Parts Destroyed . | . . . Critical Strikes . | . . . Melee Attacks . | . . . Impact . | . . . Slashing . | . . . Piercing . | . . . Sneak Attacks . | . . . Combat Hostiles . | . . . Follow-up Attacks . | . . . Damage Inflicted 772 | . 435 337 Guns 772 | . 435 337 Cannons . | . . . Explosions . | . . . Melee . | . . . Ramming . | . . . Kinetic 729 | . 435 294 Thermal 43 | . . 43 Explosive . | . . . Electromagnetic . | . . . Impact . | . . . Slashing . | . . . Piercing . | . . . Highest Corruption . | . . . Average Corruption . | . . . Corruption Purged . | . . . Corruption Blocked . | . . . Overload Shots . | . . . Overflow Damage . | . . . Projectiles . | . . . Explosions . | . . . Melee . | . . . Knockbacks . | . . . Impact . | . . . Kinetic . | . . . Secondary . | . . . Self-Inflicted Damage . | . . . Shots . | . . . Rammed . | . . . Targets Rammed . | . . . Kicked . | . . . Crushed . | . . . Highest Temperature 94 | . 20 94 Average Temperature 12 | . 6 20 Received Heat Transfer 354 | . 183 171 Siege Activations . | . . . Martial Activations . | . . . Shielding Activations . | . . . Robots Disrupted . | . . . Combat Hostiles . | . . . Robots Corrupted . | . . . Combat Hostiles . | . . . Parts Fried . | . . . Impact Corruptions . | . . . Robots Melted . | . . . Combat Hostiles . | . . . Parts Melted . | . . . Heat Transferred 100 | . . 100 Parts Sabotaged . | . . . Parts Stolen . | . . . Parts Stripped . | . . . Power Chain Reactions . | . . . Alert | -11 -10 -10 ------- Run | Yrd Mat Min Maximum Alert Level . | . . . Low Security (%) 100 | 100 100 100 Level 1 . | . . . Level 2 . | . . . Level 3 . | . . . Level 4 . | . . . Level 5 . | . . . High Security . | . . . Max Security . | . . . Peak Influence 74 | . 61 74 Initial 4 | . . 4 Average 23 | . 23 28 Influence Increases 441 | . 281 160 Destroy 0b10 Robot/C 320 | . 200 120 Destroy Leader 60 | . 50 10 Destroy Structure 1 | . 1 . Lose Combat Pursuer 60 | . 30 30 Influence Decreases 421 | . 268 153 Entered New Map 9 | . . 9 Time Decay 348 | . 238 110 Lost Part 64 | . 30 34 Squads Dispatched 3 | . 3 . Investigation 2 | . 2 . Extermination . | . . . Reinforcement 1 | . 1 . Assault . | . . . Garrison . | . . . Intercept . | . . . Searches Triggered . | . . . Construction Impeded . | . . . Haulers Reinforced . | . . . Active Scanning Responses . | . . . Cargo Convoy Interrupts . | . . . Stealth | -11 -10 -10 --------- Run | Yrd Mat Min Distress Signals 1 | . 1 . Communications Jammed . | . . . Distress Signals . | . . . Times Spotted 26 | . 15 11 Peak Tracking Total 5 | . 5 5 Tactical Retreats 2 | . 1 1 Traps | -11 -10 -10 ------- Run | Yrd Mat Min Traps Triggered 1 | . 1 . Indirectly . | . . . Trap Hack Attempts . | . . . Triggered . | . . . Disarmed . | . . . Reprogrammed . | . . . Reused . | . . . Traps Extracted . | . . . Installed . | . . . Triggered . | . . . Machines | -11 -10 -10 ---------- Run | Yrd Mat Min Machines Disabled . | . . . Max in Single Turn . | . . . Machines Repaired . | . . . Machines Dismantled . | . . . Machines Sabotaged . | . . . Overloaded Fab Kills . | . . . Hacking | -11 -10 -10 --------- Run | Yrd Mat Min Machines Accessed 4 | . 4 . Terminals 4 | . 4 . Fabricators . | . . . Repair Stations . | . . . Recycling Units . | . . . Scanalyzers . | . . . Garrison Access . | . . . Total Hacks 6 | . 6 . Successful . | . . . Failed 6 | . 6 . Catastrophic 2 | . 2 . Database Lockouts . | . . . Manual 4 | . 4 . Terminals 6 | . 6 . Fabricators . | . . . Repair Stations . | . . . Recycling Units . | . . . Scanalyzers . | . . . Garrison Access . | . . . Terminal Hacks . | . . . Fabricator Hacks . | . . . Repair Station Hacks . | . . . Recycling Unit Hacks . | . . . Scanalyzer . | . . . Garrison Access Hacks . | . . . Unauthorized Hacks . | . . . Terminals . | . . . Fabricators . | . . . Repair Stations . | . . . Recycling Units . | . . . Scanalyzers . | . . . Garrison Access . | . . . Data Cores Recovered . | . . . Used . | . . . Hacking Detections 4 | . 4 . Full Trace Events 1 | . 1 . Feedback Events . | . . . Feedback Blocked . | . . . Robot Schematics Acquired . | . . . Robots Built . | . . . Authchips . | . . . Time . | . . . Total Robot Build Rating . | . . . Part Schematics Acquired . | . . . Parts Built . | . . . Authchips . | . . . Time . | . . . Total Part Build Rating . | . . . Parts Repaired . | . . . Time . | . . . Parts Recycled . | . . . Recycled Matter . | . . . Retrieved Matter . | . . . Retrieved Components . | . . . Parts Scanalyzed . | . . . Part Schematics Acquired . | . . . Parts Damaged . | . . . Bothacking | -11 -10 -10 ------------ Run | Yrd Mat Min Used RIF Installer . | . . . Robots Hacked . | . . . Non-combat . | . . . Combat . | . . . Robot Hacks Applied . | . . . Relay Couplers Released . | . . . Fabnet Peak Effective % . | . . . Robots Rewired . | . . . Allies Hacked . | . . . Hacks Repelled . | . . . Allies | -11 -10 -10 -------- Run | Yrd Mat Min Total Allies . | . . . Largest Group . | . . . Highest-Rated Group . | . . . Highest-Rated Ally . | . . . Total Orders . | . . . Ally Attacks . | . . . Total Damage . | . . . Kills . | . . . Allies Corrupted . | . . . Allies Melted . | . . . Intel | -11 -10 -10 ------- Run | Yrd Mat Min Active Infowar (turns) . | . . . Robot Analysis Total . | . . . Derelict Logs Recovered . | . . . Drone Launches . | . . . Drone Recoveries . | . . . Exploration | -11 -10 -10 ------------- Run | Yrd Mat Min Turns Passed 908 | 61 603 244 Spaces Moved 581 | 52 384 145 Core 18 | 18 . . Treads . | . . . Legs 112 | 34 78 . Wheels . | . . . Hover 451 | . 306 145 Flight . | . . . Fastest Speed 50 | 50 116 56 Average Speed 114 | 95 117 114 Slowest Speed 190 | 120 190 180 Overloaded Moves . | . . . Propulsion Burnouts . | . . . Robots Hopped . | . . . Potential Cave-ins . | . . . Cave-ins Triggered . | . . . Exploration Rate (%) 41 | 3 69 52 Regions Visited 2 Branch Regions 1 Pre-discovered Areas . | . . . Known Exits Taken 1 | . 1 . Unknown Exits Taken 1 | 1 . . Scrap Searched 2 | . . 2 Spaces Dug . | . . . Terrain Destroyed . | . . . Melee . | . . . Projectile . | . . . AOE . | . . . Terrain Rammed . | . . . Walls Destroyed . | . . . Machines Disabled . | . . . Actions | -11 -10 -10 --------- Run | Yrd Mat Min Total 716 | 63 471 182 Wait 33 | . 25 8 Move 579 | 51 383 145 Hop . | . . . Pick Up 22 | 8 13 1 Fast Attach . | . . . Attach 13 | 4 6 3 Detach . | . . . Swap 7 | . 6 1 Drop 3 | . 3 . Fire 59 | . 35 24 Melee . | . . . Ram . | . . . Kick . | . . . Crush . | . . . Escape Stasis . | . . . Rewire . | . . . Trap . | . . . Miscellaneous . | . . . Route ------- -11/Scrapyard -10/Materials (discovered 3 exits: *Mat x2 / *Min) -10/Mines (discovered 1 exit: *Mat) History --------- Turn | Location | Event 6 | -11/Scrapyard | Discovered new exit (range 16) 62 | -11/Scrapyard | Entered Materials 271 | -10/Materials | Discovered new exit (range 12) 311 | -10/Materials | Build established: Mutant 342 | -10/Materials | Identified exit to Materials 444 | -10/Materials | Discovered exit to Materials (range 12) 647 | -10/Materials | Discovered new exit (range 7) 653 | -10/Materials | Identified exit to Mines 665 | -10/Materials | Entered Mines 678 | -10/Mines | Core integrity fell below 50% 782 | -10/Mines | Discovered exit to Materials (range 11) 900 | -10/Mines | Core integrity fell below 20% 909 | -10/Mines | Destroyed by G-47 Trooper with Particle Gun Last Messages --------------- 00825_ G-47 Trooper destroyed. 00828_ G-34 Mercenary destroyed. 00831_ Acquired 24 matter. 00833_ Acquired 4 matter. 00839_ K-01 Serf collects debris. 00851_ Searching scrap... 00851_ Found Heat Sink. 00851_ Found Core Shielding. 00851_ Found Sml. Battery. 00851_ Found 55 Matter. 00852_ Acquired 10 matter. 00853_ K-01 Serf collects debris. 00854_ Acquired Core Shielding. 00883_ S-10 Pest destroyed. 00887_ Hover Unit destroyed. 00890_ Assault Rifle destroyed. 00893_ Hover Unit destroyed. 00909_ S-10 Pest destroyed. 00909_ Switching to secondary target: G-47 Trooper. Map ----- +----------------------------------------------------+ | | | | | | | | | | | | | | | | | | | | | | | | | | | | | | | ?????????????????????????????????????????????? | | ?????????????????????????????????????????????? | | ?????????????????????????????????????????????? | | ?????????????????????????????????????????????? | | ?????????????????????????????????????????????? | | ?????????????????????????????????????????????? | | ???????#?????????????????????????????????????? | | ???????# ??????????????????????????? ????????? | | ???????# ?????????############# """????????? | | ???????# ???????## g %=%[ """????????? | | ??###### ??????## g@ =*s """????????? | | ?? ## #?##### ######## #?????? | | ?? ## #????????????????????? | | ????# ##????????????????????? | | ????# ##?????????????????????? | | ????# ##??????????????????????? | | ??### t #####???????????????????????? | | ##???????????????????????????? | | ???## ##???????????????????????????? | | ????## #???????????????????????????? | | ?????### #???????????????????????????? | | #??????## ##???????????????????????????? | | ##?????## #????????????????????????????? | | #??????## ##????????????????????????????? | | #??????## #### #????????????????????????? | | ######?## #????????????????????????? | | ##?# ######????????????????????????? | | # ### #?????????????????????????????? | | ?# !%#?????????????????????????????? | | ?# ! #####?????????????????????????? | | ?## #?????????????????????????? | | ??# #????????????????????????? | | #?# ### ??????????????????????? | | ### #??# ????????????????????? | | ## #???# #????????????????????? | +----------------------------------------------------+ Best States ------------- Heat Dissipation 25 Energy Generation 10 Energy Capacity 250 Matter Stores 300 Matter Capacity 300 Sight Range 16 Terrain Scan Density 10 Core Shielding 20 Evasion (%) 55 Item Schematics ----------------- None Robot Schematics ------------------ None Fabricated ------------ Nothing Repaired ---------- Nothing Alien Tech Used ----------------- None Achievements -------------- None Challenges ------------ None Game ------ Seed VampiricChromaticLauncher Manual? 0 Play Time 00:11:09 Cumulative 50.2 hours Start 2025.08.10 @ 18:23:41 End 2025.08.10 @ 18:44:45 Sessions 1 Manual Loads 0 Difficulty Rogue Special Mode None Game No. 31 Rogue 27 Adventurer 4 Explorer 0 Win Type - Total 0 Types 0/0/0/0/0/0/0/0/0/0 Lore% 38 Gallery% 35 Achievement% 30 Wizard Run 0 Options --------- Layout 1 ASCII 0 Keyboard 0 Movement Numpad Keybinds 1 Fullscreen 1 Font 24/Smallcaps Map View 50x35 Zoom Use 0% Tactical HUD 1 Map Filters NONE Filters NONE Steam 1 RUN: 0380afcf-2b7c-4983-9763-f9d27b778bb2